fUST/lending_fUST_20240611
["ID","MTS","AMOUNT","RATE_DAILY","PERIOD"]
[328982703,1718040653416,-500.0,0.00021643,2]
[328982705,1718040653427,-500.0,0.00021643,2]
[328982707,1718040653437,-500.0,0.00021643,2]
[328982709,1718040653447,-500.0,0.00021643,2]
[328982711,1718040653458,-154.48713808,0.00021643,2]
[328982713,1718040653471,-664.05286192,0.00021643,2]
[328982715,1718040653481,-1473.89,0.00021643,2]
[328982717,1718040653491,-504.25,0.00021643,2]
[328982720,1718040653502,-1321.26,0.00021643,2]
[328982722,1718040653514,-151.0,0.00021643,2]
[328982724,1718040653525,-151.0,0.00021643,2]
[328982726,1718040653535,-1689.23,0.00021643,2]
[328982728,1718040653545,-2915.1,0.00021643,2]
[328982730,1718040653556,-1634.82,0.00021643,2]
[328982732,1718040653566,-2070.73,0.00021643,2]
[328982734,1718040653576,-612.28,0.00021643,2]
[328982736,1718040653587,-151.0,0.00021643,2]
[328982738,1718040653599,-809.0,0.00021643,2]
[328982740,1718040653614,-835.19,0.00021643,2]
[328982742,1718040653624,-647.61,0.00021643,2]
[328982744,1718040653634,-7015.03,0.00021643,2]
[328982746,1718040653644,-579.01,0.00021643,2]
[328982751,1718040653682,-734.1,0.00021643,2]
[328982752,1718040653692,-449.83889,0.00021643,2]
[328982754,1718040653703,-221.739,0.00021643,2]
[328982756,1718040653713,-3126.98,0.00021643,2]
[328982758,1718040653722,-2341.12,0.00021643,2]
[328982760,1718040653760,-449.83889,0.00021643,2]
[328982763,1718040653771,-500.0,0.00021643,2]
[328982764,1718040653781,-634.69,0.00021643,2]
[328982767,1718040653792,-500.0,0.00021643,2]
[328982768,1718040653801,-301.25795932,0.00021647,2]
[328982771,1718040653811,-1000.0,0.00021666,2]
[328982772,1718040653821,-300.0,0.00021669,2]
[328982774,1718040653831,-616.18,0.00021689,2]
[328982776,1718040653840,-300.0,0.00021694,2]
[328982778,1718040653849,-300.0,0.00021695,2]
[328982780,1718040653859,-154.12030145,0.00021697,3]
[328982782,1718040653869,-1000.0,0.00021753,2]
[328982784,1718040653880,-4239.03743968,0.00021803,2]
[328982786,1718040653891,-1008.06252015,0.00021824,2]
[328982788,1718040653902,-300.0,0.00021837,2]
[328982790,1718040653912,-1000.0,0.0002189,2]
[328982792,1718040653921,-254.0,0.000219,2]
[328982794,1718040653931,-160.0,0.000219,2]
[328982796,1718040653942,-151.0,0.000219,2]
[328982798,1718040653952,-3302.0,0.0002191,5]
[328982800,1718040653962,-620.95139069,0.00021913,2]
[328982802,1718040653972,-151.0,0.00021913,2]
[328982804,1718040653981,-151.0,0.00021913,2]
[328982806,1718040653992,-151.0,0.00021913,2]
[328982809,1718040654003,-294.042572,0.00021913,2]
[328982810,1718040654014,-151.0,0.00021913,2]
[328982813,1718040654024,-151.0,0.00021913,2]
[328982814,1718040654035,-294.042572,0.00021913,2]
[328982816,1718040654045,-616.18,0.00021916,2]
[328982819,1718040654055,-864.9188747,0.00021917,15]
[328982820,1718040654065,-13481.93972849,0.00021917,2]
[328982823,1718040654075,-225.1695884,0.00021917,2]
[328982824,1718040654085,-263.67450645,0.00021917,2]
[328982826,1718040654095,-200.0,0.00021917,2]
[328982828,1718040654104,-200.0,0.00021917,2]
[328982830,1718040654114,-200.0,0.00021917,2]
[328982832,1718040654125,-200.0,0.00021917,2]
[328982834,1718040654135,-200.0,0.00021917,2]
[328982836,1718040654145,-200.0,0.00021917,2]
[328982838,1718040654157,-200.0,0.00021917,2]
[328982840,1718040654167,-200.0,0.00021917,2]
[328982842,1718040654177,-200.0,0.00021917,2]
[328982844,1718040654187,-200.0,0.00021917,2]
[328982846,1718040654197,-200.0,0.00021917,2]
[328982848,1718040654207,-151.0,0.00021917,2]
[328982850,1718040654216,-580.14,0.00021917,2]
[328982852,1718040654226,-500.0,0.00021917,2]
[328982854,1718040654237,-500.0,0.00021917,2]
[328982856,1718040654248,-613.45,0.00021917,2]
[328982858,1718040654258,-151.0,0.00021917,2]
[328982860,1718040654269,-616.7,0.00021917,2]
[328982862,1718040654280,-563.72,0.00021917,2]
[328982864,1718040654292,-760.25,0.00021917,2]
[328982866,1718040654302,-500.0,0.00021917,2]
[328982868,1718040654313,-151.0,0.00021917,2]
[328982869,1718040654322,-344.249963,0.00021917,2]
[328982871,1718040654332,-39.74060638,0.00021917,2]
[328982875,1718040654359,-500.0,0.00019726,2]
[328982877,1718040654369,-309.49,0.0002,2]
[328982879,1718040654379,-304.50935662,0.00021917,2]
[328982881,1718040654390,-616.18,0.00021917,2]
[328982883,1718040654400,-800.13,0.00021917,2]
[328982885,1718040654410,-500.0,0.00021917,2]
[328982887,1718040654420,-500.0,0.00021917,2]
[328982889,1718040654430,-500.0,0.00021917,2]
[328982891,1718040654441,-500.0,0.00021917,2]
[328982893,1718040654451,-818.54,0.00021917,2]
[328982895,1718040654461,-1473.89,0.00021917,2]
[328982897,1718040654471,-504.25,0.00021917,2]
[328982899,1718040654481,-155.00279653,0.00021917,2]
[328982901,1718040654490,-1321.26,0.00021917,2]
[328982903,1718040654500,-246.03465885,0.00021917,2]
[328983843,1718040819663,200.05,0.000265,120]
[328983844,1718040819692,182.64,0.000265,120]
[328983845,1718040819718,200.63,0.000265,120]
[328983846,1718040819770,22993.58,0.000265,120]
[328983848,1718041390778,155.0,0.000137,2]
[328983849,1718041588659,373.18,0.00010959,2]
[328983858,1718041695984,2558.4933398,0.00015972,2]
[328983934,1718041833780,-360.17002976,0.00016785,2]
[328983935,1718041833790,-771.35056496,0.00016786,4]
[328983936,1718041833803,-2348.74595073,0.00016786,4]
[328983937,1718041833813,-164.63552504,0.00016791,2]
[328983938,1718041833823,-300.0,0.00016792,2]
[328983939,1718041833834,-3677.22765473,0.00016793,2]
[328983951,1718041839787,-17453.97619317,0.00016793,2]
[328983952,1718041839798,-262.1960425,0.00016899,2]
[328983953,1718041839808,-6453.71144766,0.00017277,2]
[328983954,1718041839819,-6073.0733073,0.00017279,2]
[328983955,1718041839829,-1457.56102675,0.00018122,2]
[328983956,1718041839839,-372.58268352,0.00018139,2]
[328983957,1718041839850,-158.88368216,0.0001814,2]
[328983958,1718041839860,-684.85531577,0.0001814,2]
[328983959,1718041839870,-219.1704812,0.0001814,2]
[328983960,1718041839881,-155.05136365,0.0001814,2]
[328983961,1718041839891,-836.40686191,0.0001814,2]
[328983962,1718041839901,-194.99112884,0.0001814,2]
[328983963,1718041839912,-190.92384673,0.0001814,2]
[328983964,1718041839922,-193.53136627,0.0001814,2]
[328983965,1718041839932,-489.67867836,0.0001814,2]
[328983966,1718041839942,-759.78913764,0.0001814,2]
[328983967,1718041839953,-1979.68991043,0.0001814,2]
[328983968,1718041839963,-28656.4450251,0.0001814,2]
[328983969,1718041839973,-164.36727464,0.0001814,2]
[328983970,1718041839983,-4266.0574791,0.00018141,2]
[328983971,1718041839993,-1281.7000677,0.00018142,2]
[328983972,1718041840003,-177.78637968,0.00018142,2]
[328983973,1718041840013,-225.83324689,0.00018142,2]
[328983974,1718041840025,-187.79873222,0.00018142,2]
[328983975,1718041840037,-300.73819799,0.00018142,2]
[328983976,1718041840049,-155.05081033,0.00018142,2]
[328983977,1718041840059,-298.51015218,0.00018142,2]
[328983978,1718041840071,-181.12309527,0.00018142,2]
[328983979,1718041840082,-181.8094771,0.00018142,2]
[328983980,1718041840092,-250.20487116,0.00018142,2]
[328983982,1718041840105,-2440.15741232,0.00018142,2]
[328983983,1718041840116,-1689.82993633,0.00018142,2]
[328983985,1718041840126,-301.11945779,0.00018142,2]
[328983987,1718041840136,-306.86917529,0.00018142,2]
[328983989,1718041840146,-155.05359262,0.00018142,2]
[328983990,1718041840156,-242.13468129,0.00018142,2]
[328983991,1718041840167,-157.69330776,0.00018142,2]
[328983992,1718041840177,-289.97449277,0.00018142,2]
[328983993,1718041840188,-155.08126378,0.00018142,2]
[328983994,1718041840198,-304.01173315,0.00018142,2]
[328983995,1718041840208,-301.02784226,0.00018142,2]
[328983996,1718041840219,-1458.63307318,0.00018142,2]
[328983997,1718041840229,-174.53647813,0.00018142,2]
[328983998,1718041840239,-195.31360129,0.00018142,2]
[328983999,1718041840250,-10654.66518663,0.00018142,2]
[328984000,1718041840260,-183.06696409,0.00018142,2]
[328984001,1718041840270,-304.0741033,0.00018143,2]
[328984002,1718041840281,-420.0,0.00018471,2]
[328984003,1718041840292,-284.45597088,0.000187,2]
[328984004,1718041840303,-1683.19123106,0.00019078,2]
[328984005,1718041840314,-199.75703982,0.00019176,2]
[328984006,1718041840324,-275.55259809,0.00019176,2]
[328984007,1718041840335,-925.75482203,0.00019177,2]
[328984008,1718041840346,-700.59595704,0.00019178,15]
[328984009,1718041840356,-500.0,0.00019178,2]
[328984010,1718041840367,-536.66299986,0.00019178,2]
[328984011,1718041840378,-500.0,0.00019178,2]
[328984012,1718041840388,-500.0,0.00019178,2]
[328984013,1718041840399,-500.0,0.00019178,2]
[328984014,1718041840409,-500.0,0.00019178,2]
[328984015,1718041840420,-500.0,0.00019178,2]
[328984016,1718041840430,-500.0,0.00019178,2]
[328984017,1718041840440,-500.0,0.00019178,2]
[328984018,1718041840450,-501.04219233,0.00019178,2]
[328984019,1718041840461,-503.90246276,0.00019178,2]
[328984020,1718041840471,-500.0,0.00019178,2]
[328984021,1718041840481,-500.0,0.00019178,2]
[328984022,1718041840491,-500.0,0.00019178,2]
[328984023,1718041840502,-502.7751143,0.00019178,2]
[328984024,1718041840527,-500.0,0.00019178,2]
[328984025,1718041840539,-549.88565809,0.00019178,2]
[328984026,1718041840550,-500.0,0.00019178,2]
[328984027,1718041840561,-500.0,0.00019178,2]
[328984028,1718041840572,-500.0,0.00019178,2]
[328984029,1718041840583,-502.58830659,0.00019178,2]
[328984030,1718041840594,-500.0,0.00019178,2]
[328984031,1718041840605,-500.0,0.00019178,2]
[328984032,1718041840616,-501.53612893,0.00019178,2]
[328984033,1718041840627,-425.46895418,0.00019178,2]
[328984034,1718041840638,-510.61121669,0.00019178,2]
[328984035,1718041840649,-443.37105284,0.00019178,2]
[328984036,1718041840659,-500.0,0.00019178,2]
[328984037,1718041840670,-503.61605302,0.00019178,2]
[328984038,1718041840681,-500.0,0.00019178,2]
[328984039,1718041840691,-503.76038018,0.00019178,2]
[328984040,1718041840702,-500.0,0.00019178,2]
[328984041,1718041840714,-502.83838445,0.00019178,2]
[328984042,1718041840725,-502.47547324,0.00019178,2]
[328984043,1718041840735,-500.0,0.00019178,2]
[328984044,1718041840746,-204.28091851,0.00019178,2]
[328984045,1718041840757,-503.92046991,0.00019178,2]
[328984046,1718041840768,-504.20698009,0.00019178,2]
[328984047,1718041840778,-500.0,0.00019178,2]
[328984048,1718041840790,-500.0,0.00019178,2]
[328984049,1718041840800,-620.99197429,0.00019178,2]
[328984050,1718041840811,-500.0,0.00019178,2]
[328984051,1718041840821,-500.0,0.00019178,2]
[328984052,1718041840832,-500.0,0.00019178,2]
[328984053,1718041840842,-500.0,0.00019178,2]
[328984054,1718041840853,-501.42032159,0.00019178,2]
[328984055,1718041840864,-500.0,0.00019178,2]
[328984056,1718041840874,-1003.15989497,0.00019178,2]
[328984057,1718041840885,-500.0,0.00019178,2]
[328984058,1718041840895,-500.0,0.00019178,2]
[328984059,1718041840906,-534.22215977,0.00019178,2]
[328984060,1718041840917,-502.60032372,0.00019178,2]
[328984061,1718041840929,-501.92786511,0.00019178,2]
[328984062,1718041840940,-500.0,0.00019178,2]
[328984063,1718041840950,-500.0,0.00019178,2]
[328984064,1718041840961,-500.0,0.00019178,2]
[328984065,1718041840970,-504.76374757,0.00019178,2]
[328984066,1718041840981,-581.89883348,0.00019178,2]
[328984067,1718041840991,-608.94879234,0.00019178,2]
[328984068,1718041841002,-500.0,0.00019178,2]
[328984069,1718041841012,-500.0,0.00019178,2]
[328984070,1718041841023,-500.0,0.00019178,2]
[328984071,1718041841039,-500.0,0.00019178,2]
[328984072,1718041841050,-500.0,0.00019178,2]
[328984073,1718041841060,-500.0,0.00019178,2]
[328984074,1718041841072,-500.0,0.00019178,2]
[328984075,1718041841082,-506.59603578,0.00019178,2]
[328984076,1718041841093,-500.0,0.00019178,2]
[328984077,1718041841105,-500.0,0.00019178,2]
[328984078,1718041841116,-607.60511595,0.00019178,2]
[328984079,1718041841126,-500.0,0.00019178,2]
[328984080,1718041841136,-500.0,0.00019178,2]
[328984081,1718041841146,-500.0,0.00019178,2]
[328984082,1718041841156,-500.0,0.00019178,2]
[328984083,1718041841166,-500.0,0.00019178,2]
[328984084,1718041841176,-500.0,0.00019178,2]
[328984085,1718041841186,-500.0,0.00019178,2]
[328984086,1718041841197,-500.0,0.00019178,2]
[328984087,1718041841208,-500.0,0.00019178,2]
[328984088,1718041841218,-500.0,0.00019178,2]
[328984089,1718041841229,-500.0,0.00019178,2]
[328984090,1718041841239,-500.0,0.00019178,2]
[328984091,1718041841249,-500.0,0.00019178,2]
[328984092,1718041841260,-500.0,0.00019178,2]
[328984093,1718041841270,-500.0,0.00019178,2]
[328984094,1718041841281,-500.0,0.00019178,2]
[328984095,1718041841292,-500.0,0.00019178,2]
[328984096,1718041841303,-500.0,0.00019178,2]
[328984097,1718041841314,-535.9,0.00019178,2]
[328984098,1718041841324,-500.0,0.00019178,2]
[328984099,1718041841335,-500.00385671,0.00019178,2]
[328984100,1718041841345,-500.0,0.00019178,2]
[328984101,1718041841356,-500.0,0.00019178,2]
[328984102,1718041841366,-500.0,0.00019178,2]
[328984103,1718041841377,-500.0,0.00019178,2]
[328984104,1718041841388,-500.0,0.00019178,2]
[328984105,1718041841398,-500.0,0.00019178,2]
[328984106,1718041841408,-500.0,0.00019178,2]
[328984107,1718041841419,-500.0,0.00019178,2]
[328984108,1718041841431,-500.0,0.00019178,2]
[328984109,1718041841441,-500.0,0.00019178,2]
[328984110,1718041841451,-500.0,0.00019178,2]
[328984111,1718041841461,-500.0,0.00019178,2]
[328984112,1718041841471,-298.84328298,0.00019178,2]
[328984113,1718041841481,-500.0,0.00019178,2]
[328984114,1718041841492,-500.0,0.00019178,2]
[328984115,1718041841502,-500.0,0.00019178,2]
[328984116,1718041841514,-500.0,0.00019178,2]
[328984117,1718041841524,-500.0,0.00019178,2]
[328984118,1718041841534,-500.0,0.00019178,2]
[328984119,1718041841547,-500.0,0.00019178,2]
[328984120,1718041841557,-500.0,0.00019178,2]
[328984121,1718041841567,-500.0,0.00019178,2]
[328984122,1718041841577,-500.0,0.00019178,2]
[328984123,1718041841586,-500.0,0.00019178,2]
[328984124,1718041841596,-500.0,0.00019178,2]
[328984125,1718041841606,-429.12829849,0.00019178,2]
[328984126,1718041841617,-500.0,0.00019178,2]
[328984127,1718041841627,-500.0,0.00019178,2]
[328984128,1718041841637,-500.0,0.00019178,2]
[328984129,1718041841647,-500.0,0.00019178,2]
[328984130,1718041841657,-500.0,0.00019178,2]
[328984131,1718041841667,-500.0,0.00019178,2]
[328984132,1718041841678,-500.0,0.00019178,2]
[328984133,1718041841688,-500.0,0.00019178,2]
[328984134,1718041841698,-500.0,0.00019178,2]
[328984135,1718041841708,-500.0,0.00019178,2]
[328984136,1718041841719,-500.0,0.00019178,2]
[328984137,1718041841873,-506.35155167,0.00019178,2]
[328984138,1718041841883,-500.0,0.00019178,2]
[328984139,1718041841893,-510.43548497,0.00019178,2]
[328984140,1718041841903,-500.0,0.00019178,2]
[328984141,1718041841914,-500.0,0.00019178,2]
[328984142,1718041841925,-500.0,0.00019178,2]
[328984143,1718041841935,-500.0,0.00019178,2]
[328984144,1718041841946,-376.14812481,0.00019178,2]
[328984145,1718041841956,-266.38286839,0.00019178,2]
[328984146,1718041841966,-500.0,0.00019178,2]
[328984147,1718041841977,-500.0,0.00019178,2]
[328984148,1718041841987,-505.52253222,0.00019178,2]
[328984149,1718041841997,-238.35701963,0.00019178,2]
[328984150,1718041842008,-500.0,0.00019178,2]
[328984151,1718041842018,-500.0,0.00019178,2]
[328984152,1718041842032,-500.0,0.00019178,2]
[328984153,1718041842043,-501.31256351,0.00019178,2]
[328984154,1718041842053,-500.0,0.00019178,2]
[328984155,1718041842063,-504.03380264,0.00019178,2]
[328984156,1718041842076,-500.0,0.00019178,2]
[328984157,1718041842085,-500.0,0.00019178,2]
[328984158,1718041842096,-500.0,0.00019178,2]
[328984159,1718041842108,-500.0,0.00019178,2]
[328984160,1718041842119,-500.0,0.00019178,2]
[328984161,1718041842129,-500.0,0.00019178,2]
[328984162,1718041842139,-538.34,0.00019178,2]
[328984163,1718041842149,-315.44711033,0.00019178,2]
[328984164,1718041842159,-500.0,0.00019178,2]
[328984165,1718041842169,-500.0,0.00019178,2]
[328984166,1718041842179,-500.0,0.00019178,2]
[328984167,1718041842189,-586.16811941,0.00019178,2]
[328984168,1718041842200,-500.0,0.00019178,2]
[328984169,1718041842211,-265.38523263,0.00019178,2]
[328984170,1718041842222,-500.0,0.00019178,2]
[328984171,1718041842232,-500.0,0.00019178,2]
[328984172,1718041842242,-500.0,0.00019178,2]
[328984173,1718041842252,-500.0,0.00019178,2]
[328984174,1718041842262,-500.0,0.00019178,2]
[328984175,1718041842272,-502.12662518,0.00019178,2]
[328984176,1718041842283,-500.0,0.00019178,2]
[328984177,1718041842296,-500.0,0.00019178,2]
[328984178,1718041842306,-500.0,0.00019178,2]
[328984179,1718041842316,-500.0,0.00019178,2]
[328984180,1718041842327,-500.0,0.00019178,2]
[328984181,1718041842337,-500.0,0.00019178,2]
[328984182,1718041842348,-500.0,0.00019178,2]
[328984183,1718041842359,-500.0,0.00019178,2]
[328984184,1718041842370,-205.5292733,0.00019178,2]
[328984185,1718041842380,-500.0,0.00019178,2]
[328984186,1718041842390,-500.0,0.00019178,2]
[328984187,1718041842401,-500.0,0.00019178,2]
[328984188,1718041842411,-500.0,0.00019178,2]
[328984189,1718041842421,-500.0,0.00019178,2]
[328984190,1718041842431,-500.0,0.00019178,2]
[328984191,1718041842441,-500.0,0.00019178,2]
[328984192,1718041842452,-500.0,0.00019178,2]
[328984193,1718041842462,-500.0,0.00019178,2]
[328984194,1718041842472,-500.0,0.00019178,2]
[328984195,1718041842483,-500.0,0.00019178,2]
[328984196,1718041842493,-503.14839913,0.00019178,2]
[328984197,1718041842504,-565.17589974,0.00019178,2]
[328984198,1718041842517,-502.37518096,0.00019178,2]
[328984199,1718041842528,-500.0,0.00019178,2]
[328984200,1718041842539,-500.0,0.00019178,2]
[328984201,1718041842549,-500.0,0.00019178,2]
[328984202,1718041842560,-500.0,0.00019178,2]
[328984203,1718041842571,-267.58821222,0.00019178,2]
[328984204,1718041842581,-500.0,0.00019178,2]
[328984205,1718041842592,-500.0,0.00019178,2]
[328984206,1718041842602,-433.46261431,0.00019178,2]
[328984208,1718041842613,-500.0,0.00019178,2]
[328984210,1718041842624,-604.72,0.00019178,2]
[328984211,1718041842634,-500.0,0.00019178,2]
[328984213,1718041842645,-500.0,0.00019178,2]
[328984215,1718041842656,-500.0,0.00019178,2]
[328984217,1718041842666,-500.0,0.00019178,2]
[328984218,1718041842676,-500.0,0.00019178,2]
[328984219,1718041842686,-500.0,0.00019178,2]
[328984220,1718041842697,-367.58821222,0.00019178,2]
[328984221,1718041842707,-500.0,0.00019178,2]
[328984222,1718041842717,-500.0,0.00019178,2]
[328984223,1718041842727,-500.0,0.00019178,2]
[328984224,1718041842737,-500.0,0.00019178,2]
[328984225,1718041842749,-244.56921381,0.00019178,2]
[328984226,1718041842759,-500.0,0.00019178,2]
[328984227,1718041842770,-500.0,0.00019178,2]
[328984228,1718041842780,-500.0,0.00019178,2]
[328984229,1718041842791,-500.0,0.00019178,2]
[328984230,1718041842802,-500.0,0.00019178,2]
[328984231,1718041842811,-500.0,0.00019178,2]
[328984232,1718041842822,-367.58821222,0.00019178,2]
[328984233,1718041842832,-500.0,0.00019178,2]
[328984234,1718041842842,-500.0,0.00019178,2]
[328984235,1718041842852,-500.0,0.00019178,2]
[328984236,1718041842863,-500.0,0.00019178,2]
[328984237,1718041842873,-500.0,0.00019178,2]
[328984238,1718041842883,-500.0,0.00019178,2]
[328984239,1718041842894,-500.0,0.00019178,2]
[328984240,1718041842904,-500.0,0.00019178,2]
[328984241,1718041842914,-500.0,0.00019178,2]
[328984242,1718041842924,-367.58821222,0.00019178,2]
[328984243,1718041842934,-500.0,0.00019178,2]
[328984244,1718041842944,-500.0,0.00019178,2]
[328984245,1718041842954,-500.0,0.00019178,2]
[328984246,1718041842964,-500.0,0.00019178,2]
[328984247,1718041842974,-367.58821222,0.00019178,2]
[328984248,1718041842985,-500.0,0.00019178,2]
[328984249,1718041842996,-500.0,0.00019178,2]
[328984250,1718041843006,-500.0,0.00019178,2]
[328984251,1718041843016,-500.0,0.00019178,2]
[328984252,1718041843026,-500.0,0.00019178,2]
[328984253,1718041843039,-500.0,0.00019178,2]
[328984254,1718041843050,-199.37533274,0.00019178,2]
[328984255,1718041843060,-500.0,0.00019178,2]
[328984256,1718041843071,-500.0,0.00019178,2]
[328984257,1718041843081,-500.0,0.00019178,2]
[328984258,1718041843091,-367.58821222,0.00019178,2]
[328984259,1718041843100,-500.0,0.00019178,2]
[328984260,1718041843112,-500.0,0.00019178,2]
[328984261,1718041843122,-500.0,0.00019178,2]
[328984262,1718041843132,-281.63022182,0.00019178,2]
[328984263,1718041843143,-500.0,0.00019178,2]
[328984264,1718041843153,-500.0,0.00019178,2]
[328984265,1718041843163,-500.0,0.00019178,2]
[328984266,1718041843173,-367.58821222,0.00019178,2]
[328984267,1718041843183,-500.0,0.00019178,2]
[328984268,1718041843193,-500.0,0.00019178,2]
[328984269,1718041843203,-500.0,0.00019178,2]
[328984270,1718041843213,-500.0,0.00019178,2]
[328984271,1718041843224,-500.0,0.00019178,2]
[328984272,1718041843234,-500.0,0.00019178,2]
[328984273,1718041843244,-500.0,0.00019178,2]
[328984274,1718041843254,-500.0,0.00019178,2]
[328984275,1718041843264,-367.58821222,0.00019178,2]
[328984276,1718041843276,-574.5,0.00019178,2]
[328984277,1718041843286,-500.0,0.00019178,2]
[328984278,1718041843297,-500.0,0.00019178,2]
[328984279,1718041843307,-500.0,0.00019178,2]
[328984280,1718041843319,-500.0,0.00019178,2]
[328984281,1718041843334,-500.0,0.00019178,2]
[328984282,1718041843348,-367.58821222,0.00019178,2]
[328984283,1718041843361,-500.0,0.00019178,2]
[328984284,1718041843374,-500.0,0.00019178,2]
[328984285,1718041843387,-500.0,0.00019178,2]
[328984286,1718041843399,-500.0,0.00019178,2]
[328984287,1718041843409,-500.0,0.00019178,2]
[328984288,1718041843421,-500.0,0.00019178,2]
[328984289,1718041843434,-500.0,0.00019178,2]
[328984290,1718041843446,-367.58821222,0.00019178,2]
[328984291,1718041843459,-500.0,0.00019178,2]
[328984292,1718041843473,-500.0,0.00019178,2]
[328984293,1718041843487,-500.0,0.00019178,2]
[328984294,1718041843500,-500.0,0.00019178,2]
[328984295,1718041843513,-500.0,0.00019178,2]
[328984296,1718041843526,-500.0,0.00019178,2]
[328984297,1718041843540,-500.0,0.00019178,2]
[328984298,1718041843558,-2499.37,0.00019178,2]
[328984299,1718041843572,-1079.6,0.00019178,2]
[328984300,1718041843585,-500.0,0.00019178,2]
[328984301,1718041843598,-500.0,0.00019178,2]
[328984302,1718041843611,-500.0,0.00019178,2]
[328984303,1718041843623,-367.58821222,0.00019178,2]
[328984304,1718041843636,-500.0,0.00019178,2]
[328984305,1718041843647,-500.0,0.00019178,2]
[328984306,1718041843661,-501.30920121,0.00019178,2]
[328984307,1718041843675,-500.0,0.00019178,2]
[328984308,1718041843687,-500.0,0.00019178,2]
[328984309,1718041843700,-2667.98316031,0.00019178,2]
[328984310,1718041843712,-500.0,0.00019178,2]
[328984311,1718041843724,-500.0,0.00019178,2]
[328984312,1718041843735,-500.0,0.00019178,2]
[328984313,1718041843746,-500.0,0.00019178,2]
[328984314,1718041843757,-500.0,0.00019178,2]
[328984315,1718041843769,-500.0,0.00019178,2]
[328984316,1718041843782,-500.0,0.00019178,2]
[328984317,1718041843794,-500.0,0.00019178,2]
[328984318,1718041843806,-500.0,0.00019178,2]
[328984319,1718041843818,-500.0,0.00019178,2]
[328984320,1718041843830,-4888.5,0.00019178,2]
[328984321,1718041843843,-500.0,0.00019178,2]
[328984322,1718041843855,-500.0,0.00019178,2]
[328984323,1718041843866,-500.0,0.00019178,2]
[328984324,1718041843879,-500.0,0.00019178,2]
[328984325,1718041843893,-500.0,0.00019178,2]
[328984326,1718041843905,-500.0,0.00019178,2]
[328984327,1718041843918,-500.0,0.00019178,2]
[328984328,1718041843930,-500.0,0.00019178,2]
[328984329,1718041843942,-500.0,0.00019178,2]
[328984330,1718041843952,-500.0,0.00019178,2]
[328984331,1718041843963,-500.0,0.00019178,2]
[328984332,1718041843974,-500.0,0.00019178,2]
[328984333,1718041843985,-500.0,0.00019178,2]
[328984334,1718041843996,-2154.83,0.00019178,2]
[328984335,1718041844008,-500.0,0.00019178,2]
[328984336,1718041844020,-500.0,0.00019178,2]
[328984337,1718041844040,-1264.44,0.00019178,2]
[328984338,1718041844053,-613.34,0.00019178,2]
[328984339,1718041844066,-260.90098101,0.00019178,2]
[328984340,1718041844079,-501.68160764,0.00019178,2]
[328984341,1718041844090,-500.0,0.00019178,2]
[328984342,1718041844103,-500.0,0.00019178,2]
[328984343,1718041844115,-500.0,0.00019178,2]
[328984344,1718041844127,-500.0,0.00019178,2]
[328984345,1718041844139,-500.0,0.00019178,2]
[328984346,1718041844152,-500.0,0.00019178,2]
[328984347,1718041844164,-500.0,0.00019178,2]